[Event "Late-Titled-Tuesday-Blitz-November-28-2023"]
[Site "Chess.com"]
[Date "2023.11.28"]
[Round "2"]
[White "TimGrutter03"]
[Black "szefru"]
[Result "1/2-1/2"]
[WhiteElo "2543"]
[BlackElo "2336"]
[TimeControl "180+1"]
[EndTime "14:18:56 PST"]
[Termination "Game drawn - insufficient material"]

1. c4 {[%clk 0:03:00.9]} 1... Nf6 {[%clk 0:02:58.5]} 2. Nf3 {[%clk 0:03:00.8]}
2... g6 {[%clk 0:02:58.9]} 3. Nc3 {[%clk 0:02:59.1]} 3... Bg7 {[%clk 0:02:59.5]}
4. e4 {[%clk 0:02:57.9]} 4... c5 {[%clk 0:02:56.6]} 5. d3 {[%clk 0:02:45.6]}
5... d6 {[%clk 0:02:56.1]} 6. h3 {[%clk 0:02:44]} 6... O-O {[%clk 0:02:55.7]} 7.
Be2 {[%clk 0:02:40.2]} 7... Nc6 {[%clk 0:02:55.6]} 8. O-O {[%clk 0:02:40]} 8...
Nd7 {[%clk 0:02:51.8]} 9. Rb1 {[%clk 0:02:37.3]} 9... Kh8 {[%clk 0:02:46.5]} 10.
a3 {[%clk 0:02:31.8]} 10... Nde5 {[%clk 0:02:31.4]} 11. Bd2 {[%clk 0:02:24.8]}
11... Nxf3+ {[%clk 0:02:25.5]} 12. Bxf3 {[%clk 0:02:25.7]} 12... Nd4 {[%clk
0:02:26.3]} 13. b4 {[%clk 0:02:08.5]} 13... f5 {[%clk 0:02:18.6]} 14. Nd5 {[%clk
0:02:00.4]} 14... e6 {[%clk 0:01:55.8]} 15. Nc3 {[%clk 0:02:00]} 15... Rb8
{[%clk 0:01:46]} 16. g3 {[%clk 0:01:48.8]} 16... f4 {[%clk 0:01:35.9]} 17. Bg2
{[%clk 0:01:28.4]} 17... f3 {[%clk 0:01:25.1]} 18. Bh1 {[%clk 0:01:27.8]} 18...
e5 {[%clk 0:01:18.9]} 19. Be3 {[%clk 0:01:17.9]} 19... Bxh3 {[%clk 0:01:17.7]}
20. Re1 {[%clk 0:01:18.4]} 20... Bg4 {[%clk 0:01:11.5]} 21. Qd2 {[%clk
0:01:18.3]} 21... Ne2+ {[%clk 0:00:45.7]} 22. Nxe2 {[%clk 0:01:14.4]} 22... fxe2
{[%clk 0:00:46.6]} 23. Bg5 {[%clk 0:01:09.3]} 23... Bf6 {[%clk 0:00:44.3]} 24.
Bh6 {[%clk 0:01:09.5]} 24... Bg7 {[%clk 0:00:38.1]} 25. Bg5 {[%clk 0:01:09.7]}
25... Qd7 {[%clk 0:00:38.4]} 26. Qe3 {[%clk 0:01:06.6]} 26... Qf7 {[%clk
0:00:34.4]} 27. bxc5 {[%clk 0:01:01.9]} 27... dxc5 {[%clk 0:00:29.1]} 28. Qxc5
{[%clk 0:01:02]} 28... h6 {[%clk 0:00:25.1]} 29. Bd2 {[%clk 0:00:57.5]} 29... b6
{[%clk 0:00:24.4]} 30. Qe3 {[%clk 0:00:57.3]} 30... Rbd8 {[%clk 0:00:18.9]} 31.
Rb3 {[%clk 0:00:53.3]} 31... Rd7 {[%clk 0:00:19]} 32. Bb4 {[%clk 0:00:52.5]}
32... Rfd8 {[%clk 0:00:19]} 33. f3 {[%clk 0:00:52.5]} 33... Be6 {[%clk
0:00:17.8]} 34. Qxe2 {[%clk 0:00:48.8]} 34... b5 {[%clk 0:00:18.2]} 35. Rc3
{[%clk 0:00:35]} 35... bxc4 {[%clk 0:00:18.3]} 36. dxc4 {[%clk 0:00:35.7]} 36...
Rc7 {[%clk 0:00:18.9]} 37. c5 {[%clk 0:00:33.9]} 37... Rdc8 {[%clk 0:00:17.9]}
38. Rd1 {[%clk 0:00:29.8]} 38... Rc6 {[%clk 0:00:18.4]} 39. Rd6 {[%clk
0:00:28.7]} 39... Rxd6 {[%clk 0:00:17.7]} 40. cxd6 {[%clk 0:00:29.6]} 40... Rxc3
{[%clk 0:00:18.1]} 41. Bxc3 {[%clk 0:00:29.9]} 41... Qd7 {[%clk 0:00:18.8]} 42.
Qd2 {[%clk 0:00:28.7]} 42... Bf8 {[%clk 0:00:17.5]} 43. Bxe5+ {[%clk 0:00:28.8]}
43... Kh7 {[%clk 0:00:18.1]} 44. Bg2 {[%clk 0:00:27.7]} 44... Qb5 {[%clk
0:00:17]} 45. Bc3 {[%clk 0:00:24.5]} 45... Qc5+ {[%clk 0:00:16.4]} 46. Qd4
{[%clk 0:00:17.9]} 46... Bxd6 {[%clk 0:00:15.5]} 47. Kh2 {[%clk 0:00:13.1]}
47... Qxd4 {[%clk 0:00:15.7]} 48. Bxd4 {[%clk 0:00:14]} 48... Bxa3 {[%clk
0:00:16.4]} 49. Bxa7 {[%clk 0:00:13.9]} 49... Bd6 {[%clk 0:00:15.5]} 50. f4
{[%clk 0:00:13.1]} 50... g5 {[%clk 0:00:15.7]} 51. f5 {[%clk 0:00:10.9]} 51...
Bd7 {[%clk 0:00:16.3]} 52. Bd4 {[%clk 0:00:10.9]} 52... Kg8 {[%clk 0:00:15.4]}
53. e5 {[%clk 0:00:10.4]} 53... Bxe5 {[%clk 0:00:12.8]} 54. Bxe5 {[%clk
0:00:11.3]} 54... Bxf5 {[%clk 0:00:13.5]} 55. Bd5+ {[%clk 0:00:11.7]} 55... Kh7
{[%clk 0:00:13.4]} 56. Kg2 {[%clk 0:00:11.7]} 56... Kg6 {[%clk 0:00:13.9]} 57.
Kf3 {[%clk 0:00:11.4]} 57... h5 {[%clk 0:00:14.5]} 58. Bd4 {[%clk 0:00:06.1]}
58... Bg4+ {[%clk 0:00:14.9]} 59. Ke4 {[%clk 0:00:03.7]} 59... h4 {[%clk
0:00:15.6]} 60. gxh4 {[%clk 0:00:03.1]} 60... gxh4 {[%clk 0:00:16]} 61. Kf4
{[%clk 0:00:03.7]} 61... Bf5 {[%clk 0:00:16.2]} 62. Bf2 {[%clk 0:00:03.7]} 62...
h3 {[%clk 0:00:16.1]} 63. Bg3 {[%clk 0:00:04.1]} 63... Bd7 {[%clk 0:00:16.2]}
64. Ke5 {[%clk 0:00:04.3]} 64... Bg4 {[%clk 0:00:16.5]} 65. Be4+ {[%clk
0:00:04.7]} 65... Kg5 {[%clk 0:00:15.9]} 66. Kd6 {[%clk 0:00:02.4]} 66... Bc8
{[%clk 0:00:15.2]} 67. Ke5 {[%clk 0:00:03]} 67... Kg4 {[%clk 0:00:15.4]} 68. Bh2
{[%clk 0:00:03.6]} 68... Bd7 {[%clk 0:00:14.5]} 69. Bd5 {[%clk 0:00:03.5]} 69...
Bc8 {[%clk 0:00:14.7]} 70. Kd6 {[%clk 0:00:03.6]} 70... Bf5 {[%clk 0:00:14.7]}
71. Ke7 {[%clk 0:00:04.1]} 71... Bc8 {[%clk 0:00:13.6]} 72. Kf6 {[%clk
0:00:04.7]} 72... Bd7 {[%clk 0:00:13.2]} 73. Bb7 {[%clk 0:00:05]} 73... Bf5
{[%clk 0:00:12.8]} 74. Ba6 {[%clk 0:00:05.3]} 74... Bd7 {[%clk 0:00:11.4]} 75.
Bc4 {[%clk 0:00:04]} 75... Kf3 {[%clk 0:00:11.2]} 76. Bd5+ {[%clk 0:00:03.5]}
76... Kf2 {[%clk 0:00:11.3]} 77. Kg5 {[%clk 0:00:03.4]} 77... Bc8 {[%clk
0:00:11.3]} 78. Kh4 {[%clk 0:00:03.8]} 78... Bd7 {[%clk 0:00:11.2]} 79. Bb7
{[%clk 0:00:02.8]} 79... Be6 {[%clk 0:00:11.2]} 80. Bc6 {[%clk 0:00:01.1]} 80...
Ke3 {[%clk 0:00:11.3]} 81. Bb5 {[%clk 0:00:01.7]} 81... Kf2 {[%clk 0:00:11.6]}
82. Bd3 {[%clk 0:00:01.7]} 82... Bd7 {[%clk 0:00:11.7]} 83. Bg6 {[%clk
0:00:02.3]} 83... Bc8 {[%clk 0:00:11.9]} 84. Bh5 {[%clk 0:00:03]} 84... Bd7
{[%clk 0:00:12.2]} 85. Bf7 {[%clk 0:00:03.6]} 85... Bc8 {[%clk 0:00:12.6]} 86.
Bc4 {[%clk 0:00:04.2]} 86... Bd7 {[%clk 0:00:13.1]} 87. Bd5 {[%clk 0:00:04.7]}
87... Bc8 {[%clk 0:00:13.6]} 88. Kg5 {[%clk 0:00:05.1]} 88... Bd7 {[%clk
0:00:13.9]} 89. Kf4 {[%clk 0:00:05.7]} 89... Bc8 {[%clk 0:00:13]} 90. Ke4 {[%clk
0:00:06]} 90... Bg4 {[%clk 0:00:12.1]} 91. Kd4 {[%clk 0:00:06.3]} 91... Bf3
{[%clk 0:00:12.1]} 92. Bxf3 {[%clk 0:00:05.2]} 92... Kxf3 {[%clk 0:00:13]} 93.
Be5 {[%clk 0:00:05.6]} 93... Kg2 {[%clk 0:00:13.9]} 94. Ke3 {[%clk 0:00:05.5]}
94... h2 {[%clk 0:00:14.8]} 95. Bxh2 {[%clk 0:00:05.9]} 1/2-1/2

[Event "Late-Titled-Tuesday-Blitz-November-28-2023"]
[Site "Chess.com"]
[Date "2023.11.28"]
[Round "2"]
[White "sansanathalia"]
[Black "VitaliyChayka"]
[Result "1-0"]
[WhiteElo "2200"]
[BlackElo "2420"]
[TimeControl "180+1"]
[EndTime "14:19:53 PST"]
[Termination "sansanathalia won by checkmate"]

1. d4 {[%clk 0:03:00.9]} 1... d6 {[%clk 0:02:59.6]} 2. Nf3 {[%clk 0:03:00.1]}
2... Nd7 {[%clk 0:02:59.1]} 3. e3 {[%clk 0:03:00]} 3... e5 {[%clk 0:02:58.9]} 4.
dxe5 {[%clk 0:02:51.3]} 4... dxe5 {[%clk 0:02:58.5]} 5. Be2 {[%clk 0:02:51.9]}
5... Ngf6 {[%clk 0:02:58.3]} 6. O-O {[%clk 0:02:49.5]} 6... Be7 {[%clk
0:02:56.7]} 7. b3 {[%clk 0:02:48.7]} 7... O-O {[%clk 0:02:57.3]} 8. Bb2 {[%clk
0:02:48.9]} 8... Bd6 {[%clk 0:02:49.3]} 9. h3 {[%clk 0:02:33.3]} 9... Qe7 {[%clk
0:02:48.3]} 10. Nbd2 {[%clk 0:02:05.2]} 10... Nb6 {[%clk 0:02:47.6]} 11. c4
{[%clk 0:02:01.3]} 11... c5 {[%clk 0:02:37.4]} 12. Nh2 {[%clk 0:01:52.9]} 12...
e4 {[%clk 0:02:30.8]} 13. Qc2 {[%clk 0:01:30.3]} 13... Bf5 {[%clk 0:02:29.7]}
14. Rfd1 {[%clk 0:01:19.4]} 14... Rad8 {[%clk 0:02:27.7]} 15. Ndf1 {[%clk
0:01:19.2]} 15... Nbd7 {[%clk 0:02:21]} 16. Ng3 {[%clk 0:01:17]} 16... Bg6
{[%clk 0:02:20.3]} 17. Rd2 {[%clk 0:01:12.8]} 17... Ne5 {[%clk 0:02:17.9]} 18.
Bxe5 {[%clk 0:01:09.7]} 18... Bxe5 {[%clk 0:02:16.4]} 19. Rad1 {[%clk
0:01:09.5]} 19... Qc7 {[%clk 0:01:49.9]} 20. Nhf1 {[%clk 0:01:02.8]} 20... h6
{[%clk 0:01:35.1]} 21. Rxd8 {[%clk 0:01:01.3]} 21... Rxd8 {[%clk 0:01:35.1]} 22.
Rxd8+ {[%clk 0:01:01.6]} 22... Qxd8 {[%clk 0:01:36]} 23. Qd1 {[%clk 0:01:01.2]}
23... Qc7 {[%clk 0:01:34]} 24. h4 {[%clk 0:00:48.4]} 24... Ne8 {[%clk
0:01:08.3]} 25. Bh5 {[%clk 0:00:41.4]} 25... Bxh5 {[%clk 0:00:47.7]} 26. Qxh5
{[%clk 0:00:39]} 26... Nf6 {[%clk 0:00:46.5]} 27. Qd1 {[%clk 0:00:33.6]} 27...
g6 {[%clk 0:00:41.7]} 28. Qc2 {[%clk 0:00:27.6]} 28... Qc6 {[%clk 0:00:37.6]}
29. Qd2 {[%clk 0:00:23.7]} 29... Bc7 {[%clk 0:00:35.2]} 30. Nh2 {[%clk
0:00:22.1]} 30... Bxg3 {[%clk 0:00:34.3]} 31. fxg3 {[%clk 0:00:22.1]} 31... Qd7
{[%clk 0:00:34.5]} 32. Qxd7 {[%clk 0:00:20.6]} 32... Nxd7 {[%clk 0:00:35.4]} 33.
Ng4 {[%clk 0:00:20.7]} 33... Kg7 {[%clk 0:00:32.6]} 34. Kf2 {[%clk 0:00:19.2]}
34... f5 {[%clk 0:00:32.5]} 35. Nh2 {[%clk 0:00:19.6]} 35... Ne5 {[%clk
0:00:33.2]} 36. Ke2 {[%clk 0:00:19.8]} 36... Nd3 {[%clk 0:00:32.5]} 37. Kd2
{[%clk 0:00:20.3]} 37... Nb4 {[%clk 0:00:31.5]} 38. a3 {[%clk 0:00:19.9]} 38...
Nd3 {[%clk 0:00:31.6]} 39. Nf1 {[%clk 0:00:19.5]} 39... Kf6 {[%clk 0:00:30]} 40.
Nh2 {[%clk 0:00:15.4]} 40... Ne5 {[%clk 0:00:28]} 41. Nf1 {[%clk 0:00:14.9]}
41... Nf7 {[%clk 0:00:26.4]} 42. Ke2 {[%clk 0:00:15.4]} 42... Nd6 {[%clk
0:00:24.5]} 43. Nd2 {[%clk 0:00:15.2]} 43... Ke5 {[%clk 0:00:24.8]} 44. Nb1
{[%clk 0:00:15.8]} 44... Ne8 {[%clk 0:00:24.5]} 45. Nc3 {[%clk 0:00:16.4]} 45...
Nf6 {[%clk 0:00:23.5]} 46. Nb5 {[%clk 0:00:17]} 46... a6 {[%clk 0:00:23.8]} 47.
Nc3 {[%clk 0:00:17]} 47... Nh5 {[%clk 0:00:23.4]} 48. Kf2 {[%clk 0:00:16.5]}
48... Nf6 {[%clk 0:00:23.6]} 49. Na4 {[%clk 0:00:16]} 49... Nd7 {[%clk
0:00:22.7]} 50. Ke2 {[%clk 0:00:15.9]} 50... g5 {[%clk 0:00:22.9]} 51. hxg5
{[%clk 0:00:13.3]} 51... hxg5 {[%clk 0:00:23.8]} 52. Nc3 {[%clk 0:00:14]} 52...
Nf6 {[%clk 0:00:22.8]} 53. Na4 {[%clk 0:00:14]} 53... Kd6 {[%clk 0:00:23.5]} 54.
Nc3 {[%clk 0:00:14.2]} 54... Ng4 {[%clk 0:00:21.7]} 55. Kd2 {[%clk 0:00:10]}
55... Ne5 {[%clk 0:00:20.9]} 56. Nd5 {[%clk 0:00:08.4]} 56... Nd3 {[%clk
0:00:19.2]} 57. Nf6 {[%clk 0:00:08]} 57... Nf2 {[%clk 0:00:17.5]} 58. Ke2 {[%clk
0:00:07.6]} 58... Nd3 {[%clk 0:00:17.4]} 59. Kd2 {[%clk 0:00:07.4]} 59... Ke6
{[%clk 0:00:18]} 60. Ne8 {[%clk 0:00:05.7]} 60... Kd7 {[%clk 0:00:15.4]} 61.
Nf6+ {[%clk 0:00:05.5]} 61... Ke6 {[%clk 0:00:14.7]} 62. Ne8 {[%clk 0:00:06.2]}
62... Ne5 {[%clk 0:00:13.7]} 63. Ng7+ {[%clk 0:00:05.7]} 63... Kf6 {[%clk
0:00:14.3]} 64. Ne8+ {[%clk 0:00:06]} 64... Ke7 {[%clk 0:00:15]} 65. Nc7 {[%clk
0:00:06.2]} 65... Nf7 {[%clk 0:00:11.9]} 66. Nd5+ {[%clk 0:00:06.5]} 66... Kd6
{[%clk 0:00:12]} 67. Nc3 {[%clk 0:00:06.9]} 67... Nh6 {[%clk 0:00:11.1]} 68. Ke2
{[%clk 0:00:06.8]} 68... Ng8 {[%clk 0:00:11.5]} 69. g4 {[%clk 0:00:06.3]} 69...
Ke5 {[%clk 0:00:10.2]} 70. gxf5 {[%clk 0:00:06.7]} 70... Kxf5 {[%clk 0:00:11.1]}
71. Nd5 {[%clk 0:00:06.9]} 71... Nh6 {[%clk 0:00:10.8]} 72. Kf2 {[%clk
0:00:07.3]} 72... Ng4+ {[%clk 0:00:11]} 73. Ke2 {[%clk 0:00:06.8]} 73... Ne5
{[%clk 0:00:11.9]} 74. Ne7+ {[%clk 0:00:06.8]} 74... Ke6 {[%clk 0:00:11.6]} 75.
Nd5 {[%clk 0:00:07.2]} 75... Nd3 {[%clk 0:00:11.8]} 76. Nc3 {[%clk 0:00:06.9]}
76... Nc1+ {[%clk 0:00:11.4]} 77. Kd1 {[%clk 0:00:07.3]} 77... Nxb3 {[%clk
0:00:12.3]} 78. Nxe4 {[%clk 0:00:07.7]} 78... Kf5 {[%clk 0:00:11]} 79. Nd6+
{[%clk 0:00:08]} 79... Ke5 {[%clk 0:00:10.6]} 80. Nxb7 {[%clk 0:00:07.3]} 80...
Ke4 {[%clk 0:00:06.5]} 81. Kc2 {[%clk 0:00:07.3]} 81... Na1+ {[%clk 0:00:06.1]}
82. Kb2 {[%clk 0:00:07.6]} 82... Kxe3 {[%clk 0:00:06.6]} 83. Kxa1 {[%clk
0:00:08.2]} 83... Kf2 {[%clk 0:00:07]} 84. Nxc5 {[%clk 0:00:08.8]} 84... Kxg2
{[%clk 0:00:07.4]} 85. Ne6 {[%clk 0:00:07.6]} 85... g4 {[%clk 0:00:07.4]} 86. c5
{[%clk 0:00:08.3]} 86... Kf3 {[%clk 0:00:07.3]} 87. Nd4+ {[%clk 0:00:07.7]}
87... Ke3 {[%clk 0:00:06.4]} 88. Nf5+ {[%clk 0:00:04.5]} 88... Kf4 {[%clk
0:00:06.5]} 89. Nh4 {[%clk 0:00:05.1]} 89... Ke5 {[%clk 0:00:05.5]} 90. Kb2
{[%clk 0:00:04.3]} 90... Kd5 {[%clk 0:00:06]} 91. Kc3 {[%clk 0:00:04.9]} 91...
Kxc5 {[%clk 0:00:06.6]} 92. Ng2 {[%clk 0:00:05.1]} 92... g3 {[%clk 0:00:06.3]}
93. Ne3 {[%clk 0:00:05.3]} 93... Kb5 {[%clk 0:00:05.9]} 94. Kb3 {[%clk
0:00:05.2]} 94... Ka5 {[%clk 0:00:06.5]} 95. Nc4+ {[%clk 0:00:04.8]} 95... Kb5
{[%clk 0:00:06.8]} 96. Nd2 {[%clk 0:00:05.4]} 96... Ka5 {[%clk 0:00:07.1]} 97.
Nf3 {[%clk 0:00:05.9]} 97... Kb5 {[%clk 0:00:07.4]} 98. a4+ {[%clk 0:00:03.3]}
98... Ka5 {[%clk 0:00:07.7]} 99. Nd4 {[%clk 0:00:03.8]} 99... g2 {[%clk
0:00:06.9]} 100. Ne2 {[%clk 0:00:04.1]} 100... Kb6 {[%clk 0:00:06.6]} 101. Kb4
{[%clk 0:00:04.4]} 101... Kc6 {[%clk 0:00:06.9]} 102. Kc4 {[%clk 0:00:03.4]}
102... Kb6 {[%clk 0:00:07.3]} 103. Kb4 {[%clk 0:00:03.6]} 103... Kc6 {[%clk
0:00:07.6]} 104. a5 {[%clk 0:00:04.3]} 104... Kd5 {[%clk 0:00:07.3]} 105. Nf4+
{[%clk 0:00:04.6]} 105... Kd4 {[%clk 0:00:04.3]} 106. Nxg2 {[%clk 0:00:05.5]}
106... Kd5 {[%clk 0:00:04.6]} 107. Ne3+ {[%clk 0:00:05.6]} 107... Kc6 {[%clk
0:00:04.6]} 108. Kc4 {[%clk 0:00:05.6]} 108... Kc7 {[%clk 0:00:04.6]} 109. Kc5
{[%clk 0:00:05.7]} 109... Kb7 {[%clk 0:00:05.5]} 110. Nd5 {[%clk 0:00:06.2]}
110... Ka7 {[%clk 0:00:05.7]} 111. Kc6 {[%clk 0:00:06.9]} 111... Kb8 {[%clk
0:00:05.6]} 112. Kb6 {[%clk 0:00:07.8]} 112... Ka8 {[%clk 0:00:05.9]} 113. Kxa6
{[%clk 0:00:08.6]} 113... Kb8 {[%clk 0:00:06.8]} 114. Kb6 {[%clk 0:00:09.2]}
114... Ka8 {[%clk 0:00:07.7]} 115. a6 {[%clk 0:00:09.6]} 115... Kb8 {[%clk
0:00:08.6]} 116. a7+ {[%clk 0:00:10.2]} 116... Ka8 {[%clk 0:00:09.5]} 117. Nc7#
{[%clk 0:00:10.7]} 1-0

[Event "Late-Titled-Tuesday-Blitz-November-28-2023"]
[Site "Chess.com"]
[Date "2023.11.28"]
[Round "3"]
[White "jamengrand"]
[Black "Dino_Ballecer"]
[Result "0-1"]
[WhiteElo "2298"]
[BlackElo "2582"]
[TimeControl "180+1"]
[EndTime "14:22:24 PST"]
[Termination "Dino_Ballecer won by resignation"]

1. e4 {[%clk 0:03:00.9]} 1... c5 {[%clk 0:02:59.2]} 2. Nf3 {[%clk 0:03:01.2]}
2... d6 {[%clk 0:02:58.7]} 3. d4 {[%clk 0:03:01.4]} 3... cxd4 {[%clk 0:02:58.1]}
4. Nxd4 {[%clk 0:03:01.7]} 4... Nf6 {[%clk 0:02:58]} 5. Nc3 {[%clk 0:03:01.8]}
5... g6 {[%clk 0:02:56.6]} 6. Be3 {[%clk 0:03:00.2]} 6... Bg7 {[%clk 0:02:56.2]}
7. f3 {[%clk 0:03:00.5]} 7... O-O {[%clk 0:02:55.2]} 8. Qd2 {[%clk 0:03:00.4]}
8... Nc6 {[%clk 0:02:54.9]} 9. Bc4 {[%clk 0:03:00.5]} 9... Bd7 {[%clk
0:02:53.9]} 10. O-O-O {[%clk 0:02:59.1]} 10... Rc8 {[%clk 0:02:53.3]} 11. Bb3
{[%clk 0:02:59.3]} 11... Nxd4 {[%clk 0:02:52.9]} 12. Bxd4 {[%clk 0:02:59.2]}
12... b5 {[%clk 0:02:53.8]} 13. Nd5 {[%clk 0:02:56.8]} 13... Nxd5 {[%clk
0:02:52.6]} 14. Bxg7 {[%clk 0:02:57.7]} 14... Kxg7 {[%clk 0:02:51.8]} 15. exd5
{[%clk 0:02:57.3]} 15... a5 {[%clk 0:02:50.6]} 16. a3 {[%clk 0:02:56.7]} 16...
Kg8 {[%clk 0:02:49.9]} 17. Rhe1 {[%clk 0:02:56.1]} 17... Re8 {[%clk 0:02:46.6]}
18. Re4 {[%clk 0:02:55.4]} 18... Bf5 {[%clk 0:02:40.7]} 19. Rd4 {[%clk
0:02:54.4]} 19... a4 {[%clk 0:02:39.8]} 20. g4 {[%clk 0:02:54.3]} 20... axb3
{[%clk 0:02:38.3]} 21. c3 {[%clk 0:02:52.9]} 21... Bc2 {[%clk 0:02:34.3]} 22.
Rh1 {[%clk 0:02:50.5]} 22... Rc4 {[%clk 0:02:33.8]} 23. h4 {[%clk 0:02:47.4]}
23... e5 {[%clk 0:02:32.4]} 24. dxe6 {[%clk 0:02:45.8]} 24... Rxe6 {[%clk
0:02:30.9]} 25. Rd5 {[%clk 0:02:42.4]} 25... Qf6 {[%clk 0:02:24.2]} 0-1

[Event "Late-Titled-Tuesday-Blitz-November-28-2023"]
[Site "Chess.com"]
[Date "2023.11.28"]
[Round "3"]
[White "HanSchut"]
[Black "GoltsevDmitry2000"]
[Result "0-1"]
[WhiteElo "2293"]
[BlackElo "2666"]
[TimeControl "180+1"]
[EndTime "14:22:30 PST"]
[Termination "GoltsevDmitry2000 won by resignation"]

1. e4 {[%clk 0:02:59]} 1... e6 {[%clk 0:02:58.1]} 2. d4 {[%clk 0:02:59.1]} 2...
d5 {[%clk 0:02:58.5]} 3. e5 {[%clk 0:02:59.9]} 3... c5 {[%clk 0:02:58.5]} 4. c3
{[%clk 0:03:00.6]} 4... Nc6 {[%clk 0:02:59]} 5. Nf3 {[%clk 0:03:01.2]} 5... Nge7
{[%clk 0:02:58.2]} 6. Bd3 {[%clk 0:03:01.1]} 6... Nf5 {[%clk 0:02:58.4]} 7. Bxf5
{[%clk 0:03:01.6]} 7... exf5 {[%clk 0:02:59.3]} 8. h4 {[%clk 0:03:02.2]} 8...
Be7 {[%clk 0:02:58.3]} 9. h5 {[%clk 0:02:56]} 9... h6 {[%clk 0:02:57]} 10. Bf4
{[%clk 0:02:44.3]} 10... Be6 {[%clk 0:02:56.2]} 11. Kf1 {[%clk 0:02:42.9]} 11...
Qb6 {[%clk 0:02:55]} 12. Qd2 {[%clk 0:02:41.7]} 12... Rc8 {[%clk 0:02:50.2]} 13.
a3 {[%clk 0:02:33]} 13... Na5 {[%clk 0:02:45.4]} 14. dxc5 {[%clk 0:02:24.4]}
14... Qxc5 {[%clk 0:02:44.3]} 15. b4 {[%clk 0:02:14.4]} 15... Qc4+ {[%clk
0:02:43.3]} 16. Qe2 {[%clk 0:02:14.8]} 16... Nb3 {[%clk 0:02:37.2]} 17. Qxc4
{[%clk 0:01:57]} 17... Rxc4 {[%clk 0:02:35.8]} 18. Ra2 {[%clk 0:01:56.8]} 18...
Rxf4 {[%clk 0:02:35.4]} 0-1

[Event "Late-Titled-Tuesday-Blitz-November-28-2023"]
[Site "Chess.com"]
[Date "2023.11.28"]
[Round "3"]
[White "gmpeter008"]
[Black "miraitrunks"]
[Result "1-0"]
[WhiteElo "2513"]
[BlackElo "2046"]
[TimeControl "180+1"]
[EndTime "14:22:59 PST"]
[Termination "gmpeter008 won by resignation"]

1. d4 {[%clk 0:03:00.9]} 1... Nf6 {[%clk 0:02:57.9]} 2. Nf3 {[%clk 0:03:00.7]}
2... g6 {[%clk 0:02:57.9]} 3. e3 {[%clk 0:03:01.2]} 3... Bg7 {[%clk 0:02:58.2]}
4. c4 {[%clk 0:03:02]} 4... O-O {[%clk 0:02:57.8]} 5. Be2 {[%clk 0:03:02.6]}
5... d5 {[%clk 0:02:58.2]} 6. cxd5 {[%clk 0:03:01.5]} 6... Nxd5 {[%clk
0:02:59.1]} 7. O-O {[%clk 0:03:02.1]} 7... Nd7 {[%clk 0:02:46.8]} 8. e4 {[%clk
0:03:01.9]} 8... N5b6 {[%clk 0:02:46.5]} 9. Nc3 {[%clk 0:03:01.6]} 9... c5
{[%clk 0:02:46.3]} 10. d5 {[%clk 0:03:01.8]} 10... Ne5 {[%clk 0:02:45.1]} 11.
Be3 {[%clk 0:03:00.7]} 11... Nbd7 {[%clk 0:02:36.2]} 12. Nd2 {[%clk 0:02:59.5]}
12... f5 {[%clk 0:02:19.3]} 13. f4 {[%clk 0:02:58.9]} 13... Nf7 {[%clk
0:02:12.4]} 14. e5 {[%clk 0:02:58.3]} 14... Nb6 {[%clk 0:02:09.5]} 15. Nc4
{[%clk 0:02:55.1]} 15... Nxc4 {[%clk 0:02:03.9]} 16. Bxc4 {[%clk 0:02:56]} 16...
b6 {[%clk 0:02:03.6]} 17. d6 {[%clk 0:02:55.6]} 17... Kh8 {[%clk 0:01:48]} 18.
Bxf7 {[%clk 0:02:51.7]} 18... Rxf7 {[%clk 0:01:47.3]} 19. Qd5 {[%clk 0:02:52.4]}
19... Bb7 {[%clk 0:01:22.7]} 20. Qxf7 {[%clk 0:02:45.8]} 20... exd6 {[%clk
0:01:22.4]} 21. Qxb7 {[%clk 0:02:45.5]} 1-0

[Event "Late-Titled-Tuesday-Blitz-November-28-2023"]
[Site "Chess.com"]
[Date "2023.11.28"]
[Round "3"]
[White "ElephantChessGenius"]
[Black "mistrzemi"]
[Result "1-0"]
[WhiteElo "2240"]
[BlackElo "2420"]
[TimeControl "180+1"]
[EndTime "14:23:04 PST"]
[Termination "ElephantChessGenius won by resignation"]

1. e4 {[%clk 0:03:00.9]} 1... e5 {[%clk 0:02:56.9]} 2. Nf3 {[%clk 0:02:59.6]}
2... Nc6 {[%clk 0:02:57.4]} 3. c3 {[%clk 0:02:59.8]} 3... d5 {[%clk 0:02:56.6]}
4. Qa4 {[%clk 0:02:58.7]} 4... dxe4 {[%clk 0:02:48.8]} 5. Nxe5 {[%clk
0:02:56.1]} 5... Bd6 {[%clk 0:02:13.1]} 6. Nxc6 {[%clk 0:02:53.5]} 6... Qd7
{[%clk 0:02:13.5]} 7. Qxe4+ {[%clk 0:02:52.8]} 7... Kf8 {[%clk 0:02:08.8]} 8.
Nd4 {[%clk 0:02:52.2]} 8... Nf6 {[%clk 0:02:09.7]} 9. Qc2 {[%clk 0:02:50.4]}
9... Qg4 {[%clk 0:02:08.9]} 10. h3 {[%clk 0:02:47.5]} 10... Qh4 {[%clk 0:02:09]}
11. Be2 {[%clk 0:02:44.9]} 11... g5 {[%clk 0:02:06.4]} 12. Nf3 {[%clk
0:02:37.1]} 12... Qh5 {[%clk 0:02:01]} 13. Nd4 {[%clk 0:02:23.1]} 13... Qh4
{[%clk 0:02:00.9]} 14. Nf5 {[%clk 0:02:22.1]} 14... Qf4 {[%clk 0:01:55.9]} 15.
Nxd6 {[%clk 0:02:20.6]} 15... cxd6 {[%clk 0:01:56.8]} 16. d4 {[%clk 0:02:19.3]}
16... Qh4 {[%clk 0:01:55.9]} 17. Qd2 {[%clk 0:02:17]} 17... h6 {[%clk
0:01:54.4]} 18. Qe3 {[%clk 0:02:07.7]} 18... Kg7 {[%clk 0:01:54.7]} 19. g3
{[%clk 0:02:06]} 1-0

[Event "Late-Titled-Tuesday-Blitz-November-28-2023"]
[Site "Chess.com"]
[Date "2023.11.28"]
[Round "3"]
[White "SergioMoralesG"]
[Black "MNyuyu"]
[Result "1-0"]
[WhiteElo "2354"]
[BlackElo "2475"]
[TimeControl "180+1"]
[EndTime "14:23:30 PST"]
[Termination "SergioMoralesG won by checkmate"]

1. d4 {[%clk 0:02:54.8]} 1... d5 {[%clk 0:03:00.4]} 2. c4 {[%clk 0:02:52.7]}
2... e6 {[%clk 0:03:00.8]} 3. Nf3 {[%clk 0:02:53.1]} 3... Nf6 {[%clk 0:03:01.1]}
4. Nc3 {[%clk 0:02:53.7]} 4... Be7 {[%clk 0:03:01.5]} 5. Bf4 {[%clk 0:02:54]}
5... O-O {[%clk 0:03:01.8]} 6. e3 {[%clk 0:02:54.5]} 6... c5 {[%clk 0:02:59.6]}
7. dxc5 {[%clk 0:02:55.4]} 7... Bxc5 {[%clk 0:02:56]} 8. Qc2 {[%clk 0:02:55.6]}
8... Nc6 {[%clk 0:02:54.2]} 9. a3 {[%clk 0:02:56.1]} 9... a6 {[%clk 0:02:43.9]}
10. Rd1 {[%clk 0:02:47.1]} 10... Be7 {[%clk 0:02:40.7]} 11. Bd3 {[%clk
0:02:44.1]} 11... Qa5 {[%clk 0:02:37.9]} 12. cxd5 {[%clk 0:02:41.3]} 12... exd5
{[%clk 0:02:36.7]} 13. O-O {[%clk 0:02:40.8]} 13... Be6 {[%clk 0:02:35]} 14. Ng5
{[%clk 0:02:39.2]} 14... h6 {[%clk 0:02:34]} 15. Nxe6 {[%clk 0:02:38.2]} 15...
fxe6 {[%clk 0:02:34.9]} 16. Be2 {[%clk 0:02:37.1]} 16... Rac8 {[%clk 0:02:32.2]}
17. Qg6 {[%clk 0:02:36.4]} 17... Kh8 {[%clk 0:02:20.1]} 18. Bd3 {[%clk
0:02:36.5]} 18... Qd8 {[%clk 0:01:45.6]} 19. Bxh6 {[%clk 0:02:18.5]} 19... gxh6
{[%clk 0:01:45]} 20. Qxh6+ {[%clk 0:02:19.4]} 20... Kg8 {[%clk 0:01:45.1]} 21.
Qg6+ {[%clk 0:02:19.9]} 21... Kh8 {[%clk 0:01:44.5]} 22. f4 {[%clk 0:02:20.4]}
22... Qe8 {[%clk 0:01:42.8]} 23. Qh6+ {[%clk 0:02:17.8]} 23... Kg8 {[%clk
0:01:43]} 24. Rf3 {[%clk 0:02:17.4]} 24... Nh5 {[%clk 0:01:25.7]} 25. Qh7#
{[%clk 0:02:13.6]} 1-0